Cogmind - Beta 11 X8 @@@ ROGUE MODE // 2021.11.11 @ 13:31:20 Player: Terminus Result: Destroyed by 1C-UTU with 1C-UTU's Sword "Lootmaker" Performance ------------- Evolutions (1) 500 Regions Visited (6) 1200 Robots Destroyed (73) 365 Value Destroyed (1778) 1778 Prototype IDs (8) 160 Alien Tech Used (0) 0 Bonus (-17) -17 TOTAL SCORE: 3986 Bonus ------- Friendly Fire -17 Cogmind --------- Core Integrity 0/400 Matter 188/300 Energy 100/100 System Corruption 3% Temperature Cool (0) Movement Core (1350) Ox26 Location -8/Mines Parts ------- > --- POWER (1) -------- (None) > --- PROPULSION (2) --- (None) > --- UTILITY (3) ------ Huge Storage Unit > --- WEAPON (3) ------- (None) > --- INVENTORY (25) --- Cooled Ion Engine Reinforced Fission Core Experimental Heat Sink Cooling System Large Matter Pod (54) Experimental Targeting Computer 8R-AWN's Armor/EX Hacking Suite Rocket Launcher Plasma Cutter Peak State ------------ > --- POWER ------------ Cooled Ion Engine > --- PROPULSION ------- Improved Treads Improved Treads > --- UTILITY ---------- Huge Storage Unit 8R-AWN's Armor/EX > --- WEAPON ----------- Heavy Assault Rifle Heavy Assault Rifle Improved Assault Rifle > --- INVENTORY -------- Cooled Ion Engine Reinforced Fission Core Improved Treads Experimental Heat Sink Cooling System Large Matter Pod Experimental Targeting Computer Light Armor Plating Light Armor Plating Heavy Assault Rifle Heavy Assault Rifle Heavy Assault Rifle Heavy Assault Rifle Heavy Assault Rifle Heavy Assault Rifle Heavy Assault Rifle Rocket Launcher Plasma Cutter [Rating: 39] Favorites ----------- Power Cooled Ion Engine Engine Cooled Ion Engine Propulsion Light Treads Treads Light Treads Utility Light Armor Plating Device Cooling System Storage Huge Storage Unit Protection Light Armor Plating Weapon Heavy Assault Rifle Energy Gun Small Laser Energy Cannon Beam Cannon Ballistic Gun Heavy Assault Rifle Launcher Rocket Launcher Special Weapon Plasma Cutter Build | -11 -10 -10 -9 -9 -9 -8 ------- Run | Scr Mat Min Mat Min Exi Min Slots Evolved 2 | . . . 2 . . . Power . | . . . . . . . Propulsion . | . . . . . . . Utility 1 | . . . 1 . . . Weapon 1 | . . . 1 . . . Parts Attached 102 | 6 21 2 33 2 23 15 Power 13 | 1 6 1 4 . 1 . Engine 13 | 1 6 1 4 . 1 . Core . | . . . . . . . Reactor . | . . . . . . . Propulsion 23 | 2 6 . 11 . 2 2 Treads 23 | 2 6 . 11 . 2 2 Leg . | . . . . . . . Wheel . | . . . . . . . Hover . | . . . . . . . Flight . | . . . . . . . Utility 24 | 1 3 . 6 . 10 4 Device 7 | . 1 . 3 . 2 1 Storage 4 | 1 2 . 1 . . . Processor . | . . . . . . . Hackware . | . . . . . . . Protection 13 | . . . 2 . 8 3 Artifact . | . . . . . . . Weapon 42 | 2 6 1 12 2 10 9 Energy Gun 2 | 1 . . 1 . . . Energy Cannon 9 | . 3 1 5 . . . Ballistic Gun 27 | 1 2 . 6 1 8 9 Ballistic Cannon . | . . . . . . . Launcher 3 | . 1 . . 1 1 . Special Weapon 1 | . . . . . 1 . Impact Weapon . | . . . . . . . Slashing Weapon . | . . . . . . . Piercing Weapon . | . . . . . . . Special Melee Weapon . | . . . . . . . Unidentified Prototypes 7 | . . . 4 . 3 . Parts Lost 30 | . 1 1 . . 7 21 Power 3 | . 1 . . . 1 1 Propulsion 6 | . . . . . 2 4 Utility 7 | . . . . . 2 5 Weapon 14 | . . 1 . . 2 11 Highest Loss Streak 21 | . 1 1 . . 7 21 Average Slot Usage (%) 99 | . 97 99 99 100 99 92 Engine 11 | . 13 14 11 11 10 11 Treads 23 | . 27 28 22 22 22 20 Device 12 | . 12 14 13 11 7 5 Storage 11 | . 14 14 11 11 11 11 Protection 7 | . . . 8 11 13 14 Energy Cannon 8 | . 11 25 9 . . . Ballistic Gun 22 | . 13 2 22 32 32 29 Naked Turns . | . . . . . . . Heaviest Build 103 | 11 31 32 102 102 103 103 Greatest Support 46 | 40 40 40 43 43 46 46 Greatest Overweight (x) 2 | 2 2 . 2 2 2 2 Average Overweight (x) . | . . . . 2 2 2 Largest Inventory Capacity 25 | 8 15 15 25 25 25 25 Average Capacity 19 | 7 10 15 20 25 25 25 Most Carried 25 | 2 14 15 25 25 25 24 Average Carried 17 | 1 8 14 18 25 23 20 Final Capacity 25 | 8 15 15 25 25 25 25 Final Carried 25 | 2 14 15 25 25 24 11 Class Distribution -------------------- 42% | Scavenger-Tank 26% | Mutant 18% | Tank 10% | Gunner Dominant Class ---------------- Mutant | -10/Materials Mutant | -10/Mines Scavenger-Tank | -9/Materials Scavenger-Tank | -9/Mines Scavenger-Tank | -9/Exiles Scavenger-Tank | -8/Mines Resources | -11 -10 -10 -9 -9 -9 -8 ----------- Run | Scr Mat Min Mat Min Exi Min Matter Collected 2352 | 225 385 39 780 22 901 . Remotely . | . . . . . . . Salvage Created 2751 | . 710 461 1323 125 132 . Parts 159 | . 43 24 79 7 6 . Haulers Intercepted 6 | . 2 . 4 . . . Recyclers Shooed 4 | . 3 . 1 . . . Parts Field Recycled . | . . . . . . . Retrieved Matter . | . . . . . . . Parts Self-Destructed . | . . . . . . . Prevented . | . . . . . . . Kills | -11 -10 -10 -9 -9 -9 -8 ------- Run | Scr Mat Min Mat Min Exi Min Combat Hostiles Destroyed 50 | . 13 8 17 8 4 . Guns 16 | . 5 . 6 4 1 . Cannons 25 | . 5 8 11 . 1 . AOE 9 | . 3 . . 4 2 . Classes Destroyed 11 | . 7 1 3 . . . Worker 2 | . . . 2 . . . Builder 3 | . 3 . . . . . Hauler 6 | . 2 . 4 . . . Recycler 6 | . 1 2 3 . . . Operator 5 | . 3 . 2 . . . Watcher 5 | . 2 . 3 . . . Swarmer 9 | . 3 . . 6 . . Grunt 27 | . 10 7 8 2 . . Brawler 1 | . . . 1 . . . Sentry 8 | . . . 8 . . . Assembled 4 | . . 1 . . 3 . Best Kill Streak 8 | . 8 4 4 4 3 . Combat Bots Only 4 | . 4 3 2 4 3 . Max Kills in Single Turn 3 | . 3 1 1 2 1 . Gunslinging . | . . . . . . . Exploded 2 | . 2 . . 2 1 . Melee . | . . . . . . . Uniques/NPCs Destroyed 1 | . . . . . 1 . 8R-AWN (-9/Exiles) Combat | -11 -10 -10 -9 -9 -9 -8 -------- Run | Scr Mat Min Mat Min Exi Min Damage Taken 4830 | . 449 210 489 161 1130 2391 Core 509 | . 29 68 93 13 81 225 Absorbed by Shields . | . . . . . . . Core Remaining (%) 80 | 100 . 61 . . . . Volleys Fired 187 | . 55 22 57 14 32 7 Largest 3 | . 2 2 3 3 3 3 Hottest 188 | . 80 120 188 69 69 69 Shots Fired 455 | . 108 42 167 32 86 20 Gun 291 | . 73 8 81 27 82 20 Cannon 153 | . 33 34 86 . . . Launcher 9 | . 2 . . 5 2 . Special 2 | . . . . . 2 . Kinetic 271 | . 53 8 81 27 82 20 Thermal 175 | . 53 34 86 . 2 . Explosive 9 | . 2 . . 5 2 . Electromagnetic . | . . . . . . . Robot Hit Streak 16 | . 10 16 14 14 10 8 Robot Miss Streak 3 | . 3 3 3 3 2 2 Penetration Max . | . . . . . . . Secondary Targets 1 | . . . . 1 . . Max Gunslinging Chain 1 | . . . . 1 . . Shots Hit Robots 301 | . 71 29 106 14 66 15 Core Hits 120 | . 30 15 41 12 20 2 Critical Kills . | . . . . . . . Critical Parts Destroyed 1 | . . 1 . . . . Critical Strikes 1 | . . 1 . . . . Destroy 1 | . . 1 . . . . Melee Attacks . | . . . . . . . Impact . | . . . . . . . Slashing . | . . . . . . . Piercing . | . . . . . . . Sneak Attacks . | . . . . . . . Combat Hostiles . | . . . . . . . Follow-up Attacks . | . . . . . . . Damage Inflicted 5642 | . 1342 520 1902 601 1059 218 Guns 2903 | . 591 70 875 213 936 218 Cannons 1801 | . 436 419 946 . . . Explosions 735 | . 251 . . 385 99 . Melee . | . . . . . . . Ramming 179 | . 64 31 81 3 . . Kinetic 2756 | . 444 70 875 213 936 218 Thermal 1972 | . 583 419 946 . 24 . Explosive 735 | . 251 . . 385 99 . Electromagnetic . | . . . . . . . Impact . | . . . . . . . Slashing . | . . . . . . . Piercing . | . . . . . . . Highest Corruption 3 | . 1 1 3 3 3 3 Average Corruption 2 | . 1 1 3 3 3 3 Corruption Purged . | . . . . . . . Effects 111 | . 1 3 62 11 32 2 Message Errors 38 | . . 1 22 4 10 1 Matter Fused 29 | . . . 16 3 9 1 Heat Flow Errors 13 | . . . 7 2 4 . Energy Discharges 13 | . 1 1 6 . 5 . Data Loss (minor) 15 | . . 1 8 2 4 . Weapon Failures 3 | . . . 3 . . . Overload Shots . | . . . . . . . Overflow Damage 138 | . 60 9 13 56 . . Projectiles 52 | . 30 9 13 . . . Explosions 86 | . 30 . . 56 . . Melee . | . . . . . . . Knockbacks 1 | . 1 . . . . . Impact 1 | . 1 . . . . . Kinetic . | . . . . . . . Secondary . | . . . . . . . Self-Inflicted Damage . | . . . . . . . Shots . | . . . . . . . Rammed 29 | . 14 5 8 2 . . Targets Rammed 32 | . 16 5 9 2 . . Kicked . | . . . . . . . Crushed 3 | . 2 . 1 . . . Highest Temperature 260 | . 129 123 230 218 260 50 Average Temperature 50 | . 71 41 37 110 57 24 Received Heat Transfer 612 | . 222 156 207 27 . . Siege Activations . | . . . . . . . Robots Corrupted . | . . . . . . . Combat Hostiles . | . . . . . . . Parts Fried . | . . . . . . . Impact Corruptions . | . . . . . . . Robots Melted . | . . . . . . . Combat Hostiles . | . . . . . . . Parts Melted 8 | . 2 2 4 . . . Heat Transferred 4080 | . 1250 888 1924 . 18 . Parts Sabotaged . | . . . . . . . Parts Stolen . | . . . . . . . Parts Stripped . | . . . . . . . Power Chain Reactions . | . . . . . . . Missiles Intercepted . | . . . . . . . Alert | -11 -10 -10 -9 -9 -9 -8 ------- Run | Scr Mat Min Mat Min Exi Min Peak Influence 251 | . 251 216 185 239 . . Initial 54 | . . 26 5 54 . . Average 74 | . 110 48 62 111 . . Maximum Alert Level 1 | . 1 1 . 1 . . Low Security (%) 96 | 100 93 99 100 81 . 100 Level 1 3 | . 6 . . 18 . . Level 2 . | . . . . . . . Level 3 . | . . . . . . . Level 4 . | . . . . . . . Level 5 . | . . . . . . . High Security . | . . . . . . . Max Security . | . . . . . . . Squads Dispatched 7 | . 4 . 3 . . . Investigation 1 | . 1 . . . . . Extermination . | . . . . . . . Reinforcement 6 | . 3 . 3 . . . Assault . | . . . . . . . Garrison . | . . . . . . . Intercept . | . . . . . . . Construction Impeded . | . . . . . . . Haulers Reinforced . | . . . . . . . Active Scanning Responses . | . . . . . . . Cargo Convoy Interrupts . | . . . . . . . Stealth | -11 -10 -10 -9 -9 -9 -8 --------- Run | Scr Mat Min Mat Min Exi Min Distress Signals 3 | . 2 1 . . . . Communications Jammed . | . . . . . . . Distress Signals . | . . . . . . . Times Spotted 88 | . 31 9 26 7 14 1 Peak Tracking Total 9 | . 4 3 2 4 9 1 Tactical Retreats 3 | . . 1 . . 2 . Traps | -11 -10 -10 -9 -9 -9 -8 ------- Run | Scr Mat Min Mat Min Exi Min Traps Triggered 6 | . 6 . . . . . Indirectly . | . . . . . . . Trap Hack Attempts . | . . . . . . . Triggered . | . . . . . . . Disarmed . | . . . . . . . Reprogrammed . | . . . . . . . Reused . | . . . . . . . Traps Extracted . | . . . . . . . Installed 1 | . . 1 . . . . Triggered . | . . . . . . . Exploded 3 | . . . . . 3 . Machines | -11 -10 -10 -9 -9 -9 -8 ---------- Run | Scr Mat Min Mat Min Exi Min Machines Disabled 10 | . 3 . 1 3 3 . Max in Single Turn 1 | . 1 . 1 1 1 . Machines Sabotaged . | . . . . . . . Garrisons Compromised . | . . . . . . . Overloaded Fab Kills . | . . . . . . . Hacking | -11 -10 -10 -9 -9 -9 -8 --------- Run | Scr Mat Min Mat Min Exi Min Machines Accessed 15 | . 5 . 9 . 1 . Terminals 11 | . 3 . 8 . . . Fabricators . | . . . . . . . Repair Stations 2 | . 1 . 1 . . . Recycling Units 1 | . 1 . . . . . Scanalyzers . | . . . . . . . Garrison Access . | . . . . . . . Total Hacks 55 | . 12 . 37 . 6 . Successful 39 | . 9 . 24 . 6 . Failed 15 | . 3 . 12 . . . Catastrophic 1 | . . . 1 . . . Database Lockouts 1 | . . . 1 . . . Manual 28 | . 6 . 22 . . . Terminals 34 | . 7 . 27 . . . Fabricators . | . . . . . . . Repair Stations 14 | . 4 . 10 . . . Recycling Units 1 | . 1 . . . . . Scanalyzers . | . . . . . . . Garrison Access . | . . . . . . . Terminal Hacks 16 | . 2 . 8 . 6 . Record 6 | . . . . . 6 . Part Schematic 1 | . . . 1 . . . Prototype ID Bank 1 | . . . 1 . . . Terminal Index 2 | . 1 . 1 . . . Alert Level 1 | . . . 1 . . . Hauler Manifests 3 | . 1 . 2 . . . Zone Layout 2 | . . . 2 . . . Fabricator Hacks . | . . . . . . . Repair Station Hacks 12 | . 3 . 9 . . . Scan Component 7 | . 2 . 5 . . . Repair 5 | . 1 . 4 . . . Recycling Unit Hacks . | . . . . . . . Scanalyzer . | . . . . . . . Garrison Access Hacks . | . . . . . . . Unauthorized Hacks 11 | . 4 . 7 . . . Terminals 10 | . 3 . 7 . . . Botnet 10 | . 3 . 7 . . . Fabricators . | . . . . . . . Repair Stations . | . . . . . . . Recycling Units 1 | . 1 . . . . . Tunnel 1 | . 1 . . . . . Scanalyzers . | . . . . . . . Garrison Access . | . . . . . . . Data Cores Recovered 1 | . . . 1 . . . Used . | . . . . . . . Hacking Detections 13 | . 4 . 9 . . . Full Trace Events 1 | . 1 . . . . . Feedback Events . | . . . . . . . Feedback Blocked . | . . . . . . . Robot Schematics Acquired . | . . . . . . . Robots Built . | . . . . . . . Authchips . | . . . . . . . Time . | . . . . . . . Total Robot Build Rating . | . . . . . . . Part Schematics Acquired 1 | . . . 1 . . . Parts Built . | . . . . . . . Authchips . | . . . . . . . Time . | . . . . . . . Total Part Build Rating . | . . . . . . . Parts Repaired 5 | . 1 . 4 . . . Time 136 | . 26 . 110 . . . Parts Recycled . | . . . . . . . Recycled Matter . | . . . . . . . Retrieved Matter . | . . . . . . . Retrieved Components . | . . . . . . . Parts Scanalyzed . | . . . . . . . Part Schematics Acquired . | . . . . . . . Parts Damaged . | . . . . . . . Bothacking | -11 -10 -10 -9 -9 -9 -8 ------------ Run | Scr Mat Min Mat Min Exi Min Used RIF Installer . | . . . . . . . Robots Hacked . | . . . . . . . Non-combat . | . . . . . . . Combat . | . . . . . . . Robot Hacks Applied . | . . . . . . . Relay Couplers Released . | . . . . . . . Fabnet Peak Effective % . | . . . . . . . Robots Rewired . | . . . . . . . Allies Hacked . | . . . . . . . Hacks Repelled . | . . . . . . . Allies | -11 -10 -10 -9 -9 -9 -8 -------- Run | Scr Mat Min Mat Min Exi Min Total Allies 1 | . . 1 . . . . Largest Group 1 | . . 1 1 . . . Highest-Rated Group 31 | . . 31 31 . . . Highest-Rated Ally 31 | . . 31 31 . . . Total Orders . | . . . . . . . Ally Attacks 2 | . . . 2 . . . Total Damage . | . . . . . . . Kills . | . . . . . . . Allies Corrupted . | . . . . . . . Allies Melted . | . . . . . . . Intel | -11 -10 -10 -9 -9 -9 -8 ------- Run | Scr Mat Min Mat Min Exi Min Robot Analysis Total . | . . . . . . . Derelict Logs Recovered 1 | . . 1 . . . . Drone Launches . | . . . . . . . Drone Recoveries . | . . . . . . . Exploration | -11 -10 -10 -9 -9 -9 -8 ------------- Run | Scr Mat Min Mat Min Exi Min Turns Passed 8864 | 63 1524 753 4009 593 1865 57 Spaces Moved 3464 | 43 765 416 1537 171 526 6 Core 17 | 16 1 . . . . . Treads 3447 | 27 764 416 1537 171 526 6 Legs . | . . . . . . . Wheels . | . . . . . . . Hover . | . . . . . . . Flight . | . . . . . . . Fastest Speed 50 | 50 150 160 160 320 320 320 Average Speed 222 | 123 159 160 227 320 320 320 Slowest Speed 320 | 160 160 160 320 320 320 320 Overloaded Moves . | . . . . . . . Propulsion Burnouts . | . . . . . . . Robots Hopped . | . . . . . . . Cave-ins Triggered . | . . . . . . . Exploration Rate (%) 55 | 4 96 89 99 37 58 3 Regions Visited 6 Branch Regions 4 Pre-discovered Areas 2 | . 1 . . . 1 . Known Exits Taken . | . . . . . . . Unknown Exits Taken 6 | 1 1 1 1 1 1 . Scrap Searched 1 | . . 1 . . . . Spaces Dug . | . . . . . . . Terrain Destroyed 43 | . 10 . . 22 11 . Melee . | . . . . . . . Projectile . | . . . . . . . AOE 43 | . 10 . . 22 11 . Terrain Rammed . | . . . . . . . Walls Destroyed . | . . . . . . . Machines Disabled . | . . . . . . . Actions | -11 -10 -10 -9 -9 -9 -8 --------- Run | Scr Mat Min Mat Min Exi Min Total 4239 | 50 943 461 1919 188 645 33 Wait 334 | . 62 11 218 . 38 5 Move 3458 | 42 764 415 1536 170 525 6 Hop . | . . . . . . . Pick Up 64 | 2 17 3 28 . 14 . Fast Attach 35 | 6 12 . 13 . 3 1 Attach 25 | . 1 1 2 . 8 13 Detach 2 | . . . 1 . 1 . Swap 42 | . 8 1 18 2 12 1 Drop 59 | . 8 2 37 . 12 . Fire 187 | . 55 22 57 14 32 7 Melee . | . . . . . . . Ram . | . . . . . . . Kick . | . . . . . . . Crush 32 | . 16 5 9 2 . . Escape Stasis . | . . . . . . . Rewire . | . . . . . . . Trap 1 | . . 1 . . . . Miscellaneous . | . . . . . . . Route ------- -11/Scrapyard -10/Materials (discovered 5 exits: *Mat x3 / [*Min x2]) -10/Mines (discovered 2 exits: *Mat x2) -9/Materials (discovered 5 exits: [*Mat x3] / [*Min x2]) -9/Mines -9/Exiles -8/Mines History --------- Turn | Location | Event 9 | -11/Scrapyard | Discovered new exit (range 15) 64 | -11/Scrapyard | Entered Materials 315 | -10/Materials | Build established: Mutant 396 | -10/Materials | Discovered new exit (range 13) 435 | -10/Materials | Discovered new exit (range 15) 709 | -10/Materials | Discovered new exit (range 16) 960 | -10/Materials | Repaired Lgt. Treads 1306 | -10/Materials | Discovered new exit (range 14) 1341 | -10/Materials | Discovered new exit (range 7) 1588 | -10/Materials | Entered Mines 1627 | -10/Mines | Excavation squad dispatched 1627 | -10/Mines | A large section of the Mines collapsed 1793 | -10/Mines | Discovered new exit (range 14) 1917 | -10/Mines | Learned Materials trap positions 1966 | -10/Mines | Found a hidden stash of uninstalled traps 2106 | -10/Mines | Discovered new exit (range 11) 2270 | -10/Mines | Received a Mining Laser from a helpful Derelict 2341 | -10/Mines | Entered Materials 2341 | -9/Materials | Accompanied by 1 ally 2341 | -9/Materials | Evolved 2 slots: Utility x1, Weapon x1 2342 | -9/Materials | Loaded intel: 27 trap records 2641 | -9/Materials | Build established: Gunner 3399 | -9/Materials | Discovered new exit (range 7) 3824 | -9/Materials | Discovered new exit (range 3) 3825 | -9/Materials | Build established: Tank 4223 | -9/Materials | Build established: Scavenger-Tank 4971 | -9/Materials | Central database locked down 5006 | -9/Materials | Discovered new exit (range 12) 5100 | -9/Materials | Discovered new exit (range 15) 5751 | -9/Materials | Discovered new exit (range 15) 5826 | -9/Materials | Build established: Tank 6005 | -9/Materials | Repaired Lgt. Armor Plating 6033 | -9/Materials | Repaired Lgt. Armor Plating 6060 | -9/Materials | Repaired Lgt. Armor Plating 6093 | -9/Materials | Repaired Hvy. Assault Rifle 6350 | -9/Materials | Entered Mines 6383 | -9/Mines | A weapon hastily lodged in a ceiling crevice suddenly fell to the ground 6821 | -9/Mines | Deemed a non-threat by the Exiles lab entrance 6867 | -9/Mines | Assembled infested the area 6930 | -9/Mines | Discovered new exit (range 5) 6931 | -9/Mines | Build established: Scavenger-Tank 6943 | -9/Mines | Entered Exiles 7023 | -9/Exiles | Met 8R-AWN 7075 | -9/Exiles | Met EX-HEX 7261 | -9/Exiles | Met EX-DEC 7318 | -9/Exiles | Learned location of Zion (-6) 7430 | -9/Exiles | Discovered new exit (range 10) 8173 | -9/Exiles | Attacked by the Exiles 8356 | -9/Exiles | Destroyed 8R-AWN 8365 | -9/Exiles | Lost 7 parts (1p2n2u2w) 8365 | -9/Exiles | Found Prototype Processor 8396 | -9/Exiles | Found Prototype Protection 8396 | -9/Exiles | Identified 8R-AWN's Armor/EX 8808 | -9/Exiles | Entered Mines 8833 | -8/Mines | 1C-UTU came to Exiles' defense 8838 | -8/Mines | Core integrity fell below 50% 8862 | -8/Mines | Core integrity fell below 20% 8865 | -8/Mines | Destroyed by 1C-UTU with 1C-UTU's Sword "Lootmaker" Last Messages --------------- 08854_ 1C-UTU follow-up attacks with Prototype Slashing Weapon. 08855_ Hvy. Assault Rifle destroyed. 08856_ 1C-UTU follow-up attacks with Prototype Slashing Weapon. 08856_ Imp. Treads destroyed. 08857_ 1C-UTU follow-up attacks with Prototype Slashing Weapon. 08857_ Hvy. Assault Rifle destroyed. 08860_ Critical hit (Destroy). 08860_ Imp. Treads destroyed. 08860_ Lgt. Armor Plating destroyed. 08860_ 1C-UTU follow-up attacks with Prototype Slashing Weapon. 08861_ Hvy. Assault Rifle severed. 08862_ Acquired Hvy. Assault Rifle. 08863_ 1C-UTU follow-up attacks with Prototype Slashing Weapon. 08863_ Hvy. Assault Rifle destroyed. 08864_ Cld. Ion Engine destroyed. 08864_ Hvy. Assault Rifle destroyed. 08864_ Adv. Weapon Cycler destroyed. 08864_ 1C-UTU follow-up attacks with Prototype Slashing Weapon. 08865_ Hvy. Assault Rifle destroyed. 08865_ 1C-UTU follow-up attacks with Prototype Slashing Weapon. Map ----- +----------------------------------------------------+ | | | | | | | | | ???????????????????????????????????? | | ???????????????????????????????????? | | ???????????????????????????????????? | | ???????????????????????????????????? | | ???????????????????????????????????? | | ???????????????????????????????????? | | ???????????????????????????????????? | | ???????????????????????????????????? | | ???????????????????????????????????? | | ???????????????????????????????????? | | ???????????????????????????????????? | | ???????????????????????????????????? | | ???????????????????????????????????? | | ???????????????????????#########???? | | ???????????????????????# #???? | | ???????????????????????# #???? | | ???????????????????????# #???? | | ???????????????????????# """" #???? | | ???????????????????????# """" #???? | | ???????????????????????# """" #???? | | ???????????????????????# #???? | | ???????????????????????##@######???? | | ????????????????????????#l#????????? | | ????????????????????????# #????????? | | ????????????????????????# #????????? | | ????????????????????????# #????????? | | ????????????????????????# #????????? | | ???????????????????????? #????????? | | ????????????????????????###????????? | | ???????????????????????????????????? | | ???????????????????????????????????? | | ???????????????????????????????????? | | ???????????????????????????????????? | | ???????????????????????????????????? | | ???????????????????????????????????? | | ???????????????????????????????????? | | ???????????????????????????????????? | | ???????????????????????????????????? | | ???????????????????????????????????? | | ???????????????????????????????????? | | ???????????????????????????????????? | | ???????????????????????????????????? | | ???????????????????????????????????? | | ???????????????????????????????????? | | ???????????????????????????????????? | | ???????????????????????????????????? | +----------------------------------------------------+ Best States ------------- Heat Dissipation 56 Energy Generation 14 Energy Capacity 280 Matter Stores 300 Matter Capacity 300 Sight Range 16 Terrain Scan Density 10 Armor Coverage 300 Weapon Cycling 25 Evasion (%) 40 Recoil Reduction 2 Item Schematics ----------------- Huge Storage Unit | -9/Materials | Hacked Robot Schematics ------------------ None Fabricated ------------ Nothing Alien Tech Used ----------------- None Achievements -------------- None Challenges ------------ None Game ------ Seed WarpSuperchargedSaw Manual? 0 Play Time 00:29:12 Cumulative 1371.0 hours Start 2021.11.11 @ 13:03:06 End 2021.11.11 @ 13:31:20 Sessions 1 Manual Loads 0 Difficulty Rogue Special Mode None Game No. 476 Rogue 476 Adventurer 0 Explorer 0 Win Type - Total 95 Types 21/12/37/5/1/2/15/1/1 Lore% 96 Gallery% 96 Achievement% 86 Wizard Run 0 Options --------- ASCII 0 Keyboard 0 Movement Numpad Keybinds 0 Fullscreen 1 Font 18/SmallcapsGlow Map View 76x50 Tactical HUD 1 Map Filters NONE Filters NONE Steam 1 RUN: ca2d165b-d963-4554-a600-e4c7338b2a2a